Cogmind - Beta 17 @@@ ROGUE MODE // 2026.07.13 @ 12:22:02 Player: pinbox Result: Destroyed by S-27 Virus with Autogun Performance ------------- Evolutions (6) 3000 Regions Visited (8) 1600 Robots Destroyed (75) 375 Value Destroyed (2413) 2413 Prototype IDs (9) 180 Alien Tech Used (0) 0 Bonus (800) 800 TOTAL SCORE: 8368 Bonus ------- Registered with UFD 300 Met Optimus in HQ 500 Cogmind --------- Core Integrity 0/1150 Matter 45/300 Energy 98/100 System Corruption 6% Temperature Cool (0) Movement Core (50) Location -4/Factory Parts ------- > --- POWER (2) -------- (None) > --- PROPULSION (4) --- (None) > --- UTILITY (9) ------ (None) > --- WEAPON (4) ------- (None) > --- INVENTORY (5) ---- Large Storage Unit Advanced Signal Interpreter Weapon Mount Scatter Rocket Array Force Lance Peak State ------------ > --- POWER ------------ Light Angular Momentum Engine Neutrino Core > --- PROPULSION ------- Medium Treads Medium Treads Medium Treads Medium Treads > --- UTILITY ---------- Large Storage Unit Structural Scanner Target Analyzer Target Analyzer Improved Medium Armor Plating Layered Light Armor Plating Layered Light Armor Plating Advanced Hacking Suite > --- WEAPON ----------- Mass Driver Mass Driver Mass Driver > --- INVENTORY -------- Light Angular Momentum Engine Light Treads Improved Treads Scrap Suit Advanced Heat Sink Advanced Heat Sink Medium Matter Pod Gravity Neutralizer Reaction Control System Layered Light Armor Plating Improved Shield Generator Shock Bomb Launcher Scatter Rocket Array [Rating: 76] Favorites ----------- Power Fission Core Engine Light Angular Momentum Engine Power Core Fission Core Propulsion Light Treads Treads Light Treads Leg Improved Carbon-fiber Leg Wheel Centrium Wheel Utility Target Analyzer Device Seismic Detector Storage Large Storage Unit Processor Target Analyzer Hackware Improved Hacking Suite Protection Layered Light Armor Plating Weapon Advanced Assault Cannon Energy Gun Small Laser Energy Cannon Beam Cannon Ballistic Gun Gauss Rifle Ballistic Cannon Advanced Assault Cannon Launcher Scatter Rocket Array Piercing Weapon Force Lance Build | -11 -10 -10 -8 -8 -6 -5 -5 -4 ------- Run | Yrd Mat Sub Rec Scr Fac Fac Ext Fac Slots Evolved 12 | . . . . . 8 2 . 2 Power 1 | . . . . . . 1 . . Propulsion 2 | . . . . . 2 . . . Utility 7 | . . . . . 5 1 . 1 Weapon 2 | . . . . . 1 . . 1 Parts Attached 71 | 7 2 1 1 10 13 20 14 3 Power 8 | 1 . . 1 1 . 2 3 . Engine 5 | 1 . . . . . 1 3 . Core 3 | . . . 1 1 . 1 . . Reactor . | . . . . . . . . . Propulsion 18 | 2 . . . 4 1 7 3 1 Treads 16 | 2 . . . 4 1 7 2 . Leg 1 | . . . . . . . 1 . Wheel 1 | . . . . . . . . 1 Hover . | . . . . . . . . . Flight . | . . . . . . . . . Utility 31 | 2 . . . 3 11 8 6 1 Device 13 | 1 . . . 1 2 5 3 1 Storage 3 | 1 . . . 2 . . . . Processor 4 | . . . . . 4 . . . Hackware 2 | . . . . . . 1 1 . Protection 9 | . . . . . 5 2 2 . Artifact . | . . . . . . . . . Weapon 14 | 2 2 1 . 2 1 3 2 1 Energy Gun 2 | 2 . . . . . . . . Energy Cannon 3 | . 2 1 . . . . . . Ballistic Gun 1 | . . . . . . . 1 . Ballistic Cannon 6 | . . . . 2 1 3 . . Launcher 1 | . . . . . . . 1 . Special Weapon . | . . . . . . . . . Impact Weapon . | . . . . . . . . . Slashing Weapon . | . . . . . . . . . Piercing Weapon 1 | . . . . . . . . 1 Special Melee Weapon . | . . . . . . . . . Unidentified Prototypes 3 | . . . . . . 2 1 . Parts Lost 44 | . . 1 . . 1 12 26 4 Power 6 | . . . . . . 2 4 . Propulsion 12 | . . . . . . 3 7 2 Utility 18 | . . . . . 1 4 11 2 Weapon 8 | . . 1 . . . 3 4 . Highest Loss Streak 8 | . . 1 . . 1 4 8 2 To Critical Strikes 1 | . . . . . . . 1 . Average Backups 7 | . 2 5 5 8 9 11 7 4 Power . | . 1 1 1 1 1 . . . Propulsion 1 | . 1 3 3 2 2 1 1 . Utility 3 | . . 1 1 4 5 7 4 2 Weapon 1 | . . . . 1 1 2 1 1 Tool/Special . | . . . . . . . . . Unused Backups 15 | . 1 . . 5 . 1 3 5 Power 2 | . 1 . . 1 . . . . Propulsion 1 | . . . . 1 . . . . Utility 11 | . . . . 3 . 1 3 4 Weapon 1 | . . . . . . . . 1 Tool/Special . | . . . . . . . . . Average Slot Usage (%) 89 | . 99 96 100 99 97 92 79 9 Engine 2 | . 14 14 9 . . 1 5 . Core 7 | . . . 4 14 6 7 2 . Treads 24 | . 28 28 28 28 25 20 20 . Device 12 | . 14 14 14 13 10 9 10 4 Storage 9 | . 14 14 14 14 6 5 4 . Processor 4 | . . . . . 20 11 4 . Protection 4 | . . . . . 6 14 11 . Energy Cannon 11 | . 23 24 28 19 . . . . Ballistic Cannon 9 | . . . . 8 19 16 12 . Peak Build Rating 76 | 7 7 8 11 26 52 66 76 20 Average Rating 28 | 5 6 6 8 16 47 57 56 10 On Entrance 20 | . 7 7 8 11 24 52 66 11 Avg Prop Armor Cover (%) 26 | . . . . . . . 27 26 Naked Turns 33 | . . . . . . . . 33 Heaviest Build 95 | 12 15 20 24 43 61 90 95 7 Greatest Support 112 | 40 40 40 40 45 85 112 112 18 Greatest Overweight (x) 2 | . . . . 1 . 2 1 2 Average Overweight (x) . | . . . . . . . . . Largest Inventory Capacity 15 | 8 8 8 8 15 15 15 15 5 Average Capacity 11 | 7 8 8 8 10 15 15 14 5 Most Carried 15 | 1 5 5 7 13 13 15 15 5 Average Carried 8 | . 2 5 5 9 10 12 7 4 Final Capacity 15 | 8 8 8 8 15 15 15 5 5 Final Carried 14 | 1 5 5 7 13 11 14 5 5 Class Distribution -------------------- 67% | Mutant 11% | Derelict-Gunner 10% | Tank 5% | Gunner Dominant Class ---------------- Mutant | -10/Materials Mutant | -10/Subcaves Mutant | -8/Recycling Mutant | -8/Scraptown Derelict-Gunner | -6/Factory Tank | -5/Factory Mutant | -5/Extension Mutant | -4/Factory Resources | -11 -10 -10 -8 -8 -6 -5 -5 -4 ----------- Run | Yrd Mat Sub Rec Scr Fac Fac Ext Fac Matter Collected 2264 | 215 66 10 . 40 438 485 1010 . Remotely . | . . . . . . . . . Salvage Created 2053 | 14 223 214 55 . 229 426 863 29 Parts 128 | 4 20 9 6 . 17 24 47 1 Haulers Intercepted 2 | . 1 . . . . . 1 . Recyclers Shooed 4 | . 1 . . . . . 3 . Parts Field Recycled 11 | . . . . . . . 11 . Retrieved Matter 152 | . . . . . . . 152 . Parts Self-Destructed 11 | . . 11 . . . . . . Prevented . | . . . . . . . . . Parts Restored . | . . . . . . . . . Kills | -11 -10 -10 -8 -8 -6 -5 -5 -4 ------- Run | Yrd Mat Sub Rec Scr Fac Fac Ext Fac Combat Hostiles Destroyed 45 | . 4 6 1 . 6 11 16 1 Melee 2 | . . . . . . . 1 1 Cannons 36 | . 4 6 1 . 6 11 8 . AOE 7 | . . . . . . . 7 . Classes Destroyed 14 | 1 5 1 1 . 3 . 3 . Worker 2 | . . . . . 1 . 1 . Builder 8 | . 1 . . . . 1 6 . Tunneler 5 | 1 . . . . . . 4 . Hauler 2 | . 1 . . . . . 1 . Recycler 2 | . . . . . . . 2 . Turret 2 | . . 2 . . . . . . Watcher 7 | . 3 . . . . 2 2 . Swarmer 14 | . 3 4 . . . 2 4 1 Grunt 12 | . 1 2 . . . 5 4 . Sentry 9 | . . . 1 . 1 3 4 . Hunter 5 | . . . . . 3 . 2 . Programmer 3 | . . . . . 2 1 . . Behemoth 2 | . . . . . . . 2 . Thug 1 | . . . . . . . 1 . Savage 1 | . . . . . . . 1 . Best Kill Streak 14 | 1 4 6 1 . 2 4 14 1 Combat Bots Only 6 | . 2 6 1 . 2 4 5 1 Max Kills in Single Turn 11 | 1 2 1 1 . 1 2 11 1 Gunslinging . | . . . . . . . . . Exploded 5 | . . . . . . . 5 . Melee 1 | . . . . . . . 1 1 Uniques/NPCs Destroyed . | . . . . . . . . . Combat | -11 -10 -10 -8 -8 -6 -5 -5 -4 -------- Run | Yrd Mat Sub Rec Scr Fac Fac Ext Fac Hostile Shots Fired 627 | . 23 50 2 . 59 123 246 124 Missed 194 | . 5 17 1 . 22 25 80 44 Hits 433 | . 18 33 1 . 37 98 166 80 Projectile 433 | . 18 33 1 . 37 98 166 80 Critical Strikes 15 | . . . . . 1 5 5 4 Actively Blocked 1 | . . . . . 1 . . . Damage Taken 8236 | . 158 280 15 . 553 1860 3866 1504 Core 1759 | . 31 17 . . 42 49 462 1158 Absorbed by Shields 461 | . . . . . . 461 . . Redirected to Shielding 74 | . . . . . 74 . . . Core Remaining (%) 80 | 100 . . . 80 95 . 48 . Volleys Fired 164 | 2 24 24 2 . 15 31 66 . Largest 3 | 2 2 2 2 . 3 3 3 . Hottest 144 | 90 120 140 140 . 120 141 144 . Shots Fired 345 | 4 45 30 4 . 43 92 127 . Gun 11 | 4 4 . . . . . 3 . Cannon 330 | . 41 30 4 . 43 92 120 . Launcher 4 | . . . . . . . 4 . Special . | . . . . . . . . . Kinetic 258 | . . . . . 43 92 123 . Thermal 83 | 4 45 30 4 . . . . . Explosive 4 | . . . . . . . 4 . Electromagnetic . | . . . . . . . . . Robot Hit Streak 10 | 2 3 6 1 . 7 10 8 . Robot Miss Streak 6 | 1 5 4 3 . 6 4 6 . Penetration Max 1 | . . . . . . 1 1 . Secondary Targets . | . . . . . . . . . Shots Hit Robots 186 | 3 17 18 1 . 21 56 68 2 Core Hits 141 | 1 9 11 1 . 13 27 76 3 Critical Kills . | . . . . . . . . . Critical Parts Destroyed . | . . . . . . . . . Critical Strikes 15 | . . . . . 2 6 7 . Blast 15 | . . . . . 2 6 7 . Melee Attacks 5 | . . . . . . . . 5 Impact . | . . . . . . . . . Slashing . | . . . . . . . . . Piercing 5 | . . . . . . . . 5 Sneak Attacks . | . . . . . . . . . Combat Hostiles . | . . . . . . . . . Follow-up Attacks . | . . . . . . . . . Damage Inflicted 7350 | 35 312 350 28 . 572 1775 4117 161 Guns 95 | 35 12 . . . . . 48 . Cannons 5380 | . 293 350 28 . 547 1766 2396 . Explosions 1592 | . . . . . . . 1592 . Melee 101 | . . . . . . . . 101 Ramming 182 | . 7 . . . 25 9 81 60 Kinetic 4757 | . . . . . 547 1766 2444 . Thermal 718 | 35 305 350 28 . . . . . Explosive 1592 | . . . . . . . 1592 . Electromagnetic . | . . . . . . . . . Impact . | . . . . . . . . . Slashing . | . . . . . . . . . Piercing 101 | . . . . . . . . 101 Highest Corruption 23 | . . . . . 3 4 23 6 Average Corruption 8 | . . . . . 1 3 16 2 Corruption Purged . | . . . . . . . . . Corruption Blocked . | . . . . . . . . . Effects 77 | . . . . . 2 14 56 5 Message Errors 14 | . . . . . . 4 8 2 Matter Fused 15 | . . . . . . 2 13 . Heat Flow Errors 10 | . . . . . . 4 5 1 Energy Discharges 5 | . . . . . . . 5 . Parts Fused 1 | . . . . . . . 1 . Data Loss (minor) 11 | . . . . . 1 2 7 1 Data Loss (major) 4 | . . . . . . 1 2 1 Misfires 2 | . . . . . . . 2 . Alerts 3 | . . . . . 1 1 1 . Misdirections 6 | . . . . . . . 6 . Weapon Failures 6 | . . . . . . . 6 . Overload Shots . | . . . . . . . . . Overflow Damage 110 | . . . . . 13 15 82 . Projectiles 89 | . . . . . 13 15 61 . Explosions 15 | . . . . . . . 15 . Melee 6 | . . . . . . . 6 . Knockbacks 24 | . . . . . 4 9 11 . Impact 1 | . . . . . . . 1 . Kinetic 22 | . . . . . 4 8 10 . Secondary 1 | . . . . . . 1 . . Self-Inflicted Damage 172 | . . . . . . . 152 20 Shots 7 | . . . . . . . 7 . Rammed 29 | . 2 . 1 . 1 3 9 13 Targets Rammed 36 | . 2 . 1 . 2 3 10 18 Kicked 5 | . . . . . . . . 5 Crushed 2 | . . . . . 1 . 1 . Highest Temperature 484 | 60 360 48 165 . 168 484 437 122 Average Temperature 150 | 30 167 22 89 . 55 210 88 81 Received Heat Transfer 1066 | . 30 72 9 . 6 388 477 84 Effects 30 | . 2 . . . . 24 4 . Shutdowns 16 | . . . . . . 13 3 . Energy Bleed 4 | . . . . . . 3 1 . Interference 7 | . 1 . . . . 6 . . Short Circuit 2 | . . . . . . 2 . . Damage (minor) 1 | . 1 . . . . . . . Siege Activations . | . . . . . . . . . Martial Activations . | . . . . . . . . . Shielding Activations . | . . . . . . . . . Robots Disrupted . | . . . . . . . . . Combat Hostiles . | . . . . . . . . . Robots Corrupted . | . . . . . . . . . Combat Hostiles . | . . . . . . . . . Parts Fried . | . . . . . . . . . Impact Corruptions 1 | . . . . . . . 1 . Robots Melted . | . . . . . . . . . Combat Hostiles . | . . . . . . . . . Parts Melted 1 | . . 1 . . . . . . Heat Transferred 1493 | 99 654 703 37 . . . . . Parts Sabotaged . | . . . . . . . . . Parts Stolen . | . . . . . . . . . Parts Stripped . | . . . . . . . . . Power Chain Reactions . | . . . . . . . . . Alert | -11 -10 -10 -8 -8 -6 -5 -5 -4 ------- Run | Yrd Mat Sub Rec Scr Fac Fac Ext Fac Maximum Alert Level 1 | . . . . . . . 1 . Low Security (%) 97 | 100 100 . 100 . 100 100 91 100 Level 1 2 | . . . . . . . 8 . Level 2 . | . . . . . . . . . Level 3 . | . . . . . . . . . Level 4 . | . . . . . . . . . Level 5 . | . . . . . . . . . High Security . | . . . . . . . . . Max Security . | . . . . . . . . . Peak Influence 262 | 5 108 . 57 . 91 178 262 149 Initial 83 | . . . 57 . . 23 44 83 Average 36 | . 38 . 9 . 15 48 58 36 Influence Increases 1924 | 5 184 200 35 . 226 377 628 269 Destroy 0b10 Robot/C 940 | . 80 160 20 . 120 220 320 20 Destroy 0b10 Robot/NC 130 | 5 25 . . . 5 15 80 . Destroy Leader 186 | . 28 10 . . 50 54 44 . Allied During Kill 4 | . . . . . . . 4 . Successful Hack 53 | . 18 . 15 . . . 11 9 Disable Machine 60 | . 15 . . . 45 . . . Destroy Structure 221 | . 3 . . . 6 58 154 . Partial Spotted 30 | . . . . . . . . 30 Lose Combat Pursuer 300 | . 15 30 . . . 30 15 210 Influence Decreases 1791 | 5 165 99 155 . 178 333 550 306 Entered New Map 233 | . . 10 63 . . 25 48 87 Time Decay 1220 | 5 165 79 92 . 174 224 297 184 Lost Part 336 | . . 10 . . 4 84 203 35 Lost Ally 2 | . . . . . . . 2 . Squads Dispatched 18 | . 1 . . . 3 7 4 3 Investigation 5 | . . . . . 1 2 1 1 Extermination 4 | . . . . . 1 2 . 1 Reinforcement 5 | . 1 . . . . . 3 1 Assault . | . . . . . . . . . Garrison 4 | . . . . . 1 3 . . Intercept . | . . . . . . . . . Searches Triggered . | . . . . . . . . . Construction Impeded 3 | . . . . . . . 3 . Haulers Reinforced . | . . . . . . . . . Active Scanning Responses . | . . . . . . . . . Cargo Convoy Interrupts 1 | . . . . . . 1 . . Stealth | -11 -10 -10 -8 -8 -6 -5 -5 -4 --------- Run | Yrd Mat Sub Rec Scr Fac Fac Ext Fac Distress Signals 4 | . 1 . . . 1 . 2 . Communications Jammed . | . . . . . . . . . Distress Signals . | . . . . . . . . . Times Spotted 103 | . 10 10 1 . 8 20 30 24 Peak Tracking Total 10 | . 4 6 1 . 3 6 7 10 Tactical Retreats 11 | . 1 1 . . . 2 1 6 Traps | -11 -10 -10 -8 -8 -6 -5 -5 -4 ------- Run | Yrd Mat Sub Rec Scr Fac Fac Ext Fac Traps Triggered 7 | . . . . . 2 2 2 1 Indirectly . | . . . . . . . . . Trap Hack Attempts . | . . . . . . . . . Triggered . | . . . . . . . . . Disarmed . | . . . . . . . . . Reprogrammed . | . . . . . . . . . Reused . | . . . . . . . . . Traps Extracted . | . . . . . . . . . Installed . | . . . . . . . . . Triggered . | . . . . . . . . . Machines | -11 -10 -10 -8 -8 -6 -5 -5 -4 ---------- Run | Yrd Mat Sub Rec Scr Fac Fac Ext Fac Machines Disabled 5 | . 1 . . . 3 . 1 . Max in Single Turn 1 | . 1 . . . 1 . 1 . Machines Repaired . | . . . . . . . . . Machines Dismantled . | . . . . . . . . . Machines Sabotaged . | . . . . . . . . . Overloaded Fab Kills . | . . . . . . . . . Hacking | -11 -10 -10 -8 -8 -6 -5 -5 -4 --------- Run | Yrd Mat Sub Rec Scr Fac Fac Ext Fac Machines Accessed 40 | . 4 . 7 11 3 3 6 6 Terminals 18 | . 4 . 1 . 3 1 6 3 Fabricators . | . . . . . . . . . Repair Stations 1 | . . . . . . . . 1 Recycling Units 6 | . . . 4 . . 1 . 1 Scanalyzers 1 | . . . . . . . . 1 Garrison Access 1 | . . . . . . 1 . . Total Hacks 169 | . 14 . 36 67 7 9 17 19 Successful 121 | . 7 . 31 67 . 2 6 8 Failed 47 | . 7 . 5 . 7 7 11 10 Catastrophic 8 | . . . . . 3 . 3 2 Database Lockouts 1 | . . . . . . . . 1 Manual 50 | . 13 . 4 . 7 5 12 9 Terminals 50 | . 14 . 3 . 7 2 17 7 Fabricators . | . . . . . . . . . Repair Stations 2 | . . . . . . . . 2 Recycling Units 15 | . . . 9 . . 3 . 3 Scanalyzers 7 | . . . . . . . . 7 Garrison Access 4 | . . . . . . 4 . . Terminal Hacks 99 | . 3 . 24 67 . . 4 1 Record 90 | . . . 24 66 . . . . Robot Analysis 1 | . 1 . . . . . . . Branch Access Points 1 | . . . . . . . 1 . Dispatch Records 1 | . . . . . . . 1 . Zone Layout 5 | . 2 . . . . . 2 1 Proto ID Catalog 1 | . . . . 1 . . . . Fabricator Hacks . | . . . . . . . . . Repair Station Hacks . | . . . . . . . . . Recycling Unit Hacks 5 | . . . 5 . . . . . Report Inventory 3 | . . . 3 . . . . . Retrieve Components 2 | . . . 2 . . . . . Scanalyzer 5 | . . . . . . . . 5 Insert Component 2 | . . . . . . . . 2 Analyze 2 | . . . . . . . . 2 Retrieve Study 1 | . . . . . . . . 1 Garrison Access Hacks . | . . . . . . . . . Unauthorized Hacks 12 | . 4 . 2 . . 2 2 2 Terminals 9 | . 4 . 1 . . 1 2 1 Botnet 9 | . 4 . 1 . . 1 2 1 Fabricators . | . . . . . . . . . Repair Stations . | . . . . . . . . . Recycling Units 3 | . . . 1 . . 1 . 1 Recyclers 1 | . . . 1 . . . . . Fedlink 2 | . . . . . . 1 . 1 Scanalyzers . | . . . . . . . . . Garrison Access . | . . . . . . . . . Data Cores Recovered . | . . . . . . . . . Used . | . . . . . . . . . Hacking Detections 24 | . 4 . 3 . 3 3 6 5 Full Trace Events 2 | . . . . . . 1 1 . Feedback Events . | . . . . . . . . . Feedback Blocked . | . . . . . . . . . Robot Schematics Acquired . | . . . . . . . . . Robots Built . | . . . . . . . . . Authchips . | . . . . . . . . . Time . | . . . . . . . . . Total Robot Build Rating . | . . . . . . . . . Part Schematics Acquired 2 | . . . . . . . . 2 Parts Built . | . . . . . . . . . Authchips . | . . . . . . . . . Time . | . . . . . . . . . Total Part Build Rating . | . . . . . . . . . Part Studies Acquired 1 | . . . . . . . . 1 Parts Repaired . | . . . . . . . . . Time . | . . . . . . . . . Parts Recycled . | . . . . . . . . . Recycled Matter . | . . . . . . . . . Retrieved Matter . | . . . . . . . . . Retrieved Components 2 | . . . 2 . . . . . Parts Scanalyzed 2 | . . . . . . . . 2 Part Schematics Acquired 2 | . . . . . . . . 2 Parts Damaged . | . . . . . . . . . Bothacking | -11 -10 -10 -8 -8 -6 -5 -5 -4 ------------ Run | Yrd Mat Sub Rec Scr Fac Fac Ext Fac Used RIF Installer . | . . . . . . . . . Robots Hacked . | . . . . . . . . . Non-combat . | . . . . . . . . . Combat . | . . . . . . . . . Robot Hacks Applied . | . . . . . . . . . Relay Couplers Released 3 | . . . . . 3 . . . Programmers 3 | . . . . . 3 . . . Fabnet Peak Effective % . | . . . . . . . . . Robots Rewired 4 | . . . . . . . 4 . Allies Hacked . | . . . . . . . . . Hacks Repelled . | . . . . . . . . . Allies | -11 -10 -10 -8 -8 -6 -5 -5 -4 -------- Run | Yrd Mat Sub Rec Scr Fac Fac Ext Fac Total Allies 4 | . . . . . . . 4 . Largest Group 4 | . . . . . . . 4 . Highest-Rated Group 113 | . . . . . . . 113 . Highest-Rated Ally 31 | . . . . . . . 31 . Initial UFD Resources 40 | . . . . . 22 26 36 40 Total Orders . | . . . . . . . . . Ally Attacks 37 | . . . . . . . 37 . Total Damage 773 | . . . . . . . 773 . Kills . | . . . . . . . . . Allies Corrupted . | . . . . . . . . . Allies Melted . | . . . . . . . . . Intel | -11 -10 -10 -8 -8 -6 -5 -5 -4 ------- Run | Yrd Mat Sub Rec Scr Fac Fac Ext Fac Active Infowar (turns) 6084 | 30 454 242 457 2798 813 289 996 5 Sensors 1320 | . . . . 502 813 . . 5 Terrain 154 | . . . . . . . 154 . Structural 1285 | . . . . . . 289 996 . Seismic 3479 | 30 454 242 457 2296 . . . . Robot Analysis Total 1 | . 1 . . . . . . . Derelict Logs Recovered 2 | . . 1 . 1 . . . . Drone Launches . | . . . . . . . . . Drone Recoveries . | . . . . . . . . . Exploration | -11 -10 -10 -8 -8 -6 -5 -5 -4 ------------- Run | Yrd Mat Sub Rec Scr Fac Fac Ext Fac Turns Passed 7167 | 99 454 242 457 2799 864 763 1026 463 Spaces Moved 4201 | 53 203 111 279 1672 375 339 503 666 Core 587 | 2 . . . . . . 58 527 Treads 3475 | 51 203 111 279 1672 375 339 445 . Legs 96 | . . . . . . . . 96 Wheels 43 | . . . . . . . . 43 Hover . | . . . . . . . . . Flight . | . . . . . . . . . Fastest Speed 50 | 50 160 160 160 152 156 156 50 50 Average Speed 146 | 155 160 160 160 165 156 172 149 62 Slowest Speed 320 | 160 160 160 160 232 160 320 240 150 Overloaded Moves . | . . . . . . . . . Propulsion Burnouts . | . . . . . . . . . Robots Hopped . | . . . . . . . . . Potential Cave-ins 4 | . . . . . . . 4 . Cave-ins Triggered 1 | . . . . . . . 1 . Exploration Rate (%) 31 | 4 41 10 43 93 12 8 59 13 Regions Visited 8 Branch Regions 4 Pre-discovered Areas 1 | . . . . . . . . 1 Known Exits Taken 1 | . . . . . 1 . . . Unknown Exits Taken 7 | 1 1 1 1 1 . 1 1 . Scrap Searched 10 | . . . . 10 . . . . Spaces Dug . | . . . . . . . . . Terrain Destroyed 196 | . . . . . 6 28 162 . Melee . | . . . . . . . . . Projectile 84 | . . . . . 6 28 50 . AOE 112 | . . . . . . . 112 . Terrain Rammed . | . . . . . . . . . Walls Destroyed . | . . . . . . . . . Machines Disabled . | . . . . . . . . . Actions | -11 -10 -10 -8 -8 -6 -5 -5 -4 --------- Run | Yrd Mat Sub Rec Scr Fac Fac Ext Fac Total 4901 | 62 288 145 285 1708 621 442 647 703 Wait 301 | . 48 10 . . 201 31 11 . Move 4193 | 52 202 110 278 1671 374 338 502 666 Hop . | . . . . . . . . . Pick Up 43 | 1 5 . 2 10 6 7 7 5 Fast Attach 35 | 7 2 1 . 2 5 10 7 1 Attach 33 | . . . . 2 8 9 11 3 Detach 20 | . 2 . . 2 4 7 4 1 Swap 12 | . . . 1 7 2 2 . . Drop 39 | . 3 . 1 14 4 4 9 4 Fire 164 | 2 24 24 2 . 15 31 66 . Melee 5 | . . . . . . . . 5 Ram 13 | . . . . . . . . 13 Kick 5 | . . . . . . . . 5 Crush 18 | . 2 . 1 . 2 3 10 . Escape Stasis . | . . . . . . . . . Rewire 20 | . . . . . . . 20 . Trap . | . . . . . . . . . Miscellaneous . | . . . . . . . . . Route ------- -11/Scrapyard -10/Materials (discovered 3 exits: [*Mat] / [*Min] / [*Sub]) -10/Subcaves (discovered 2 exits: [*Mat] / *Rec) -8/Recycling -8/Scraptown (discovered 2 exits: *Fac x2) -6/Factory -5/Factory -5/Extension (discovered 2 exits: *Fac / *Cet) -4/Factory History --------- Turn | Location | Event 78 | -11/Scrapyard | Discovered new exit (range 12) 100 | -11/Scrapyard | Entered Materials 295 | -10/Materials | Discovered new exit (range 16) 313 | -10/Materials | Build established: Mutant 477 | -10/Materials | Discovered new exit (range 13) 535 | -10/Materials | Discovered new exit (range 5) 554 | -10/Materials | Entered Subcaves 555 | -10/Subcaves | Approached by a straggling Scientist 581 | -10/Subcaves | Learned 2 Materials zone layouts 652 | -10/Subcaves | Discovered new exit (range 15) 692 | -10/Subcaves | Discovered new exit (range 14) 796 | -10/Subcaves | Entered Recycling 1214 | -8/Recycling | Scanned before Scraplab entrance 1238 | -8/Recycling | Entered Scraplab 1251 | -8/Recycling | Discovered new exit (range 2) 1253 | -8/Recycling | Entered Scraptown 1557 | -8/Scraptown | Scanned Subdweller tech in exchange for log data 1562 | -8/Scraptown | Learned Factory terminal intel 1585 | -8/Scraptown | Discovered new exit (range 7) 1738 | -8/Scraptown | Visited Bundlers 1837 | -8/Scraptown | Heard Great Nut preacher, LISTEN AND RECITE! 1837 | -8/Scraptown | Visited Red Mages 1897 | -8/Scraptown | Visited Assassins FH 2319 | -8/Scraptown | Visited Symbiants 2373 | -8/Scraptown | Visited Cyclists 2398 | -8/Scraptown | Visited Cave Peace 2437 | -8/Scraptown | Visited Fellowship of the Rings 2501 | -8/Scraptown | Visited UFD Registry 2501 | -8/Scraptown | Registered with UFD as "Spikeboard" 2525 | -8/Scraptown | Entered Cyclist Reading Room 2615 | -8/Scraptown | Visited Derelict Rescue Squad 2633 | -8/Scraptown | Found DRS Beacon 2668 | -8/Scraptown | Visited A0-MCA Data Center 2677 | -8/Scraptown | Given a B- rating by A0-MCA 2707 | -8/Scraptown | Visited Junk Repository 2984 | -8/Scraptown | Visited Modified Component R&D 3043 | -8/Scraptown | Visited DA-N13 Charitable Foundation 3058 | -8/Scraptown | Found DCF Scrap (28 items) 3096 | -8/Scraptown | Visited Scrap Suit Storage 3146 | -8/Scraptown | Visited Supply Room 3503 | -8/Scraptown | Visited Science Guys 3581 | -8/Scraptown | Visited Junk Repository 3744 | -8/Scraptown | Found Scrap Suit 3934 | -8/Scraptown | Met Optimus 3934 | -8/Scraptown | Accepted into 0bPrime 4042 | -8/Scraptown | Civil war broke out across Scraptown 4046 | -8/Scraptown | Discovered new exit (range 5) 4052 | -8/Scraptown | Entered Factory 4052 | -6/Factory | Evolved 8 slots: Propulsion x2, Utility x5, Weapon x1 4053 | -6/Factory | Loaded intel: 25 terminal locations 4074 | -6/Factory | Garrison activated, responded to threat 4365 | -6/Factory | Build established: Derelict-Gunner 4712 | -6/Factory | Discovered new exit (range 9) 4755 | -6/Factory | Identified exit to Factory 4797 | -6/Factory | Found Prototype Launcher 4916 | -6/Factory | Entered another Factory area 4916 | -5/Factory | Evolved 2 slots: Power x1, Utility x1 5168 | -5/Factory | Loaded intel: 8 recycling unit locations 5223 | -5/Factory | Build established: Tank 5294 | -5/Factory | Garrison activated, responded to threat 5334 | -5/Factory | Lost 4 parts (1n2u1w) 5596 | -5/Factory | Cargo convoy interrupted 5622 | -5/Factory | Discovered new exit (range 15) 5638 | -5/Factory | Lost 3 parts (1n2u) 5679 | -5/Factory | Entered Extension 5881 | -5/Extension | Build established: Gunner 5934 | -5/Extension | System corruption reached 10% 6002 | -5/Extension | Identified exit to Cetus 6045 | -5/Extension | Spotted B-75 Beast 6059 | -5/Extension | Crushed by falling debris 6130 | -5/Extension | Lost 5 parts (1p3u1w) 6291 | -5/Extension | Destroyed B-75 Beast 6325 | -5/Extension | Spotted B-75 Beast 6360 | -5/Extension | Identified Scatter Rocket Array 6361 | -5/Extension | Destroyed B-75 Beast 6389 | -5/Extension | Lost 3 parts (2n1u) 6504 | -5/Extension | Disrupted transfer network 6615 | -5/Extension | Lost 8 parts (2p2n3u1w) 6695 | -5/Extension | Discovered new exit (range 16) 6705 | -5/Extension | Entered Factory 6705 | -4/Factory | Evolved 2 slots: Utility x1, Weapon x1 6711 | -4/Factory | Lost 6 parts (2n2u2w) 6741 | -4/Factory | Central database locked down 6784 | -4/Factory | Loaded intel: 8 recycling unit locations 6784 | -4/Factory | Learned location of Protoforge (-2) 6853 | -4/Factory | Build established: Mutant 7129 | -4/Factory | Core integrity fell below 50% 7144 | -4/Factory | Core integrity fell below 20% 7168 | -4/Factory | Destroyed by S-27 Virus with Autogun Last Messages --------------- 07126_ TF Node disabled. 07126_ Adv. Sensor Array tumbles out of TF Node. 07126_ Adv. Signal Interpreter tumbles out of TF Node. 07130_ Acquired Adv. Sensor Array. 07133_ Acquired Adv. Signal Interpreter. 07134_ System corrupted: Substantial component data lost. 07134_ Dropped Force Lance. 07134_ Dropped Adv. Signal Interpreter. 07135_ Acquired Force Lance. 07135_ Adv. Sensor Array destroyed. 07137_ Slammed into S-27 Virus. 07138_ Destabilizing: Core damaged (-57). 07139_ Slammed into S-27 Virus. 07140_ Destabilizing: System corrupted (+2). 07141_ Slammed into S-27 Virus. 07146_ Destabilizing: Core damaged (-46). 07147_ Slammed into S-27 Virus. 07153_ Terminal disabled. Map ----- +----------------------------------------------------+ | | | | | | | ?????????????????????????#############???????????? | | ???????#################?# #???????????? | | ???????# #] #?# #???????????? | | ######## ! # = """ #?# #???????????? | | / "T" #?# """ """ #???????????? | | # ###### # = #?# """ """ ############# | | # ###??# ###+#######?# """ """ + | | #??####### % #?????# # | | ########## #?????######+###### """ """ | | !#?????????# """ """ | | ###### ### ########### """ """ | | #????# #?# | | ####### #?################# | | # # #???########?????## ##############+## | | # "" # ##### #?????# #??# ] | | + """ / + #?##### "" #??# """"""""" | | # R" # ##### #?# T" #??# | | #### """ # #???# #?# ### #??# """"""""" | | ???# # #???# ### ### #??#! | | ???# [ ! # #???#! # ########?############# | | ???####### ########+##; # #?????????????# | | ?????????# Y sss + !#?????????????# | | ????????##+##### ### @ # """ #?????????????# | | ????????# # #?# # """ #?????????????# | | ######### ! # #?### ###?""" #?????????????# | | # # #???#u#??? #?????????????# | | * # # ##??# #????####??????????????# | | # # #??# #???????????????????#### | | # # #??# #???????????????????# | | """ """ # + #??#R#???????????????????# "" | | """ """ # # ####/#####???????????????# "" | | """ """ # # # #???????????????# "" | | # # # #???????????????? | | ###+##### ! # # #???????????????# ! | | ## ! # # #???????????????#### | | ## # # #??????????????????? | | ## # # #??????????????????? | | ######### # #??????????????????? | | #???????# # #??????????????????? | | ## #???????# # #??????????????????? | | !# ######### ###/#############???????????? | | # ?????????? | | # ?????????? | | # ????????? | | # ^ ????????? | | # """"""" """"""" """"""" ????????? | | # """"""" """"""" """"""" ?????????? | +----------------------------------------------------+ Best States ------------- Heat Dissipation 59 Energy Generation 32 Energy Capacity 455 Matter Stores 300 Matter Capacity 300 Sight Range 16 Robot Scan Range 15 Terrain Scan Range 20 Terrain Scan Density 10 Armor Coverage 600 Propulsion Shielding 66 Phase Shifting 5 Evasion (%) 55 Targeting Accuracy 5 Target Analysis 7 Recoil Reduction 4 Offensive Hacking 14 Item Schematics ----------------- Adv. Signal Interpreter | -4/Factory | Scanalyzed Centrium Wheel | -4/Factory | Scanalyzed Robot Schematics ------------------ None Fabricated ------------ Nothing Repaired ---------- Nothing Studied --------- Centrium Wheel | -4/Factory | Hacked Alien Tech Used ----------------- None Achievements -------------- A New Friend Challenges ------------ None Game ------ Seed ReactiveConstructShovel Manual? 0 Play Time 01:11:24 Cumulative 46.0 hours Start 2026.07.13 @ 10:30:02 End 2026.07.13 @ 12:22:02 Sessions 3 Manual Loads 0 Difficulty Rogue Special Mode None Game No. 52 Rogue 52 Adventurer 0 Explorer 0 Win Type - Total 1 Types 1/0/0/0/0/0/0/0/0/0 Lore% 42 Gallery% 36 Achievement% 34 Wizard Run 0 Options --------- Layout 1 ASCII 0 Keyboard 1 Movement Numpad Keybinds 1 Fullscreen 2 Font 24/Smallcaps Map View 50x40 Zoom Use 0% Tactical HUD 1 Map Filters NONE Filters NONE Steam 1 RUN: 3b3a71da-fe0f-45b1-bbf0-c36dafb89362